[Event "Allsvenskan 24-25"]
[Site "Linköping, Sweden"]
[Date "2024.12.01"]
[Round "5.1"]
[White "Sandstrom, Ludvig"]
[Black "Wahlund, Max"]
[Result "1-0"]
[TimeControl "90 min/40 moves + 30 min + 30 sec from move 1"]
[BlackTitle "CM"]
[WhiteElo "2296"]
[BlackElo "2082"]

1. Nf3 {[%clk 01:30:58]} {[%emt 00:13:32]} Nf6 {[%clk 01:30:58]} {[%emt
00:00:03]} 2. c4 {[%clk 01:31:20]} {[%emt 00:00:08]} g6 {[%clk 01:31:12]}
{[%emt 00:00:16]} 3. Nc3 {[%clk 01:31:42]} {[%emt 00:00:09]} Bg7 {[%clk
01:31:16]} {[%emt 00:00:25]} 4. e4 {[%clk 01:31:51]} {[%emt 00:00:21]} d6
{[%clk 01:31:41]} {[%emt 00:00:05]} 5. d4 {[%clk 01:32:14]} {[%emt 00:00:07]}
O-O {[%clk 01:32:06]} {[%emt 00:00:05]} 6. Be2 {[%clk 01:32:36]} {[%emt
00:00:07]} e5 {[%clk 01:32:28]} {[%emt 00:00:09]} 7. O-O {[%clk 01:32:49]}
{[%emt 00:00:17]} Nbd7 {[%clk 01:32:45]} {[%emt 00:00:13]} 8. Re1 {[%clk
01:29:09]} {[%emt 00:04:10]} exd4 {[%clk 01:26:28]} {[%emt 00:06:47]} 9. Nxd4
{[%clk 01:29:23]} {[%emt 00:00:16]} Re8 {[%clk 01:26:52]} {[%emt 00:00:06]} 10.
Bf1 {[%clk 01:29:24]} {[%emt 00:00:29]} Nc5 {[%clk 01:27:15]} {[%emt 00:00:07]}
11. f3 {[%clk 01:29:21]} {[%emt 00:00:32]} Ne6 {[%clk 01:25:34]} {[%emt
00:02:11]} 12. Be3 {[%clk 01:24:45]} {[%emt 00:05:06]} Nxd4 {[%clk 01:24:13]}
{[%emt 00:01:52]} 13. Bxd4 {[%clk 01:24:58]} {[%emt 00:00:16]} Be6 {[%clk
01:24:32]} {[%emt 00:00:10]} 14. Qd2 {[%clk 01:23:06]} {[%emt 00:02:22]} c6
{[%clk 01:16:25]} {[%emt 00:08:38]} 15. Rad1 {[%clk 01:20:56]} {[%emt
00:02:40]} Qa5 {[%clk 00:55:06]} {[%emt 00:21:49]} 16. Kh1 {[%clk 01:19:28]}
{[%emt 00:01:58]} Rad8 {[%clk 00:54:43]} {[%emt 00:00:53]} 17. Bxf6 {[%emt
00:03:49]} 1-0

[Event "Allsvenskan 24-25"]
[Site "Linköping, Sweden"]
[Date "2024.12.01"]
[Round "5.2"]
[White "Silfver, Anton"]
[Black "Sanden, Stefan"]
[Result "1-0"]
[TimeControl "90 min/40 moves + 30 min + 30 sec from move 1"]
[WhiteElo "1919"]
[BlackElo "2268"]

1. e4 {[%clk 01:30:56]} {[%emt 00:00:04]} c5 {[%clk 01:30:46]} {[%emt
00:00:14]} 2. Nf3 {[%clk 01:31:19]} {[%emt 00:00:07]} e6 {[%clk 01:31:04]}
{[%emt 00:00:12]} 3. d4 {[%clk 01:31:08]} {[%emt 00:00:41]} cxd4 {[%clk
01:31:21]} {[%emt 00:00:13]} 4. Nxd4 {[%clk 01:30:44]} {[%emt 00:00:53]} Nc6
{[%clk 01:31:00]} {[%emt 00:00:44]} 5. Nc3 {[%clk 01:26:46]} {[%emt 00:04:36]}
d6 {[%clk 01:30:24]} {[%emt 00:01:06]} 6. Be3 {[%clk 01:24:37]} {[%emt
00:02:39]} Nf6 {[%clk 01:30:31]} {[%emt 00:00:23]} 7. f3 {[%clk 01:24:30]}
{[%emt 00:00:37]} Be7 {[%clk 01:30:16]} {[%emt 00:00:45]} 8. Qd2 {[%clk
01:23:41]} {[%emt 00:01:19]} a6 {[%clk 01:27:20]} {[%emt 00:03:26]} 9. O-O-O
{[%clk 01:22:50]} {[%emt 00:01:22]} h5 {[%clk 01:25:26]} {[%emt 00:02:24]} 10.
Kb1 {[%clk 01:17:53]} {[%emt 00:05:26]} Qc7 {[%clk 01:25:28]} {[%emt 00:00:28]}
11. Bd3 {[%clk 01:11:57]} {[%emt 00:06:26]} b5 {[%clk 01:17:52]} {[%emt
00:08:06]} 12. h4 {[%clk 01:01:27]} {[%emt 00:11:00]} Bb7 {[%clk 01:16:18]}
{[%emt 00:02:03]} 13. Rhe1 {[%clk 00:49:08]} {[%emt 00:12:50]} Rc8 {[%clk
01:06:20]} {[%emt 00:10:28]} 14. Nxc6 {[%clk 00:41:28]} {[%emt 00:08:10]} Bxc6
{[%clk 01:05:43]} {[%emt 00:01:07]} 15. Bg5 {[%clk 00:41:38]} {[%emt 00:00:21]}
b4 {[%clk 00:31:58]} {[%emt 00:34:14]} 16. Ne2 {[%clk 00:41:24]} {[%emt
00:00:43]} a5 {[%clk 00:32:21]} {[%emt 00:00:07]} 17. Nd4 {[%clk 00:39:30]}
{[%emt 00:02:24]} Bd7 {[%clk 00:32:40]} {[%emt 00:00:11]} 18. g4 {[%clk
00:33:16]} {[%emt 00:06:45]} hxg4 {[%clk 00:26:00]} {[%emt 00:07:10]} 19. fxg4
{[%clk 00:32:07]} {[%emt 00:01:38]} Qc5 {[%clk 00:25:07]} {[%emt 00:01:23]} 20.
Be3 {[%clk 00:30:34]} {[%emt 00:02:03]} Qe5 {[%clk 00:25:08]} {[%emt 00:00:28]}
21. Nf3 {[%clk 00:22:22]} {[%emt 00:08:43]} Qg3 {[%clk 00:21:57]} {[%emt
00:03:41]} 22. Qe2 {[%clk 00:18:55]} {[%emt 00:03:57]} Qxg4 {[%clk 00:16:35]}
{[%emt 00:05:51]} 23. Rg1 {[%clk 00:18:59]} {[%emt 00:00:26]} Qh5 {[%clk
00:16:06]} {[%emt 00:01:00]} 24. Rg5 {[%clk 00:18:06]} {[%emt 00:01:24]} Qh7
{[%clk 00:16:25]} {[%emt 00:00:11]} 25. e5 {[%clk 00:17:19]} {[%emt 00:01:16]}
Ne4 {[%clk 00:16:32]} {[%emt 00:00:23]} 26. Rg4 {[%clk 00:15:50]} {[%emt
00:01:59]} d5 {[%clk 00:16:21]} {[%emt 00:00:41]} 27. Rdg1 {[%clk 00:12:37]}
{[%emt 00:03:42]} g6 {[%clk 00:15:35]} {[%emt 00:01:16]} 28. Bxe4 {[%clk
00:11:45]} {[%emt 00:01:22]} dxe4 {[%clk 00:15:58]} {[%emt 00:00:07]} 29. Rxe4
{[%clk 00:11:44]} {[%emt 00:00:31]} Qh5 {[%clk 00:13:31]} {[%emt 00:02:56]} 30.
Bg5 {[%clk 00:08:53]} {[%emt 00:03:21]} Bc6 {[%clk 00:10:30]} {[%emt 00:03:31]}
31. Rc4 {[%clk 00:07:00]} {[%emt 00:02:22]} Bxg5 {[%clk 00:07:14]} {[%emt
00:03:46]} 32. Rxg5 {[%clk 00:07:18]} {[%emt 00:00:12]} Qh6 {[%clk 00:07:36]}
{[%emt 00:00:09]} 33. Rxc6 {[%clk 00:05:48]} {[%emt 00:02:00]} Rxc6 {[%clk
00:08:01]} {[%emt 00:00:05]} 34. Qb5 {[%clk 00:06:04]} {[%emt 00:00:14]} Kd7
{[%clk 00:08:10]} {[%emt 00:00:22]} 35. Nd4 {[%clk 00:05:54]} {[%emt 00:00:40]}
Rhc8 {[%clk 00:08:02]} {[%emt 00:00:37]} 36. Nxc6 {[%clk 00:05:20]} {[%emt
00:01:03]} 1-0

[Event "Allsvenskan 24-25"]
[Site "Linköping, Sweden"]
[Date "2024.12.01"]
[Round "5.4"]
[White "Pettersson, Borje"]
[Black "Johansen, Peter"]
[Result "0-1"]
[TimeControl "90 min/40 moves + 30 min + 30 sec from move 1"]
[WhiteElo "1909"]
[BlackElo "2128"]

1. e4 {[%clk 01:30:55]} {[%emt 00:00:04]} e6 {[%clk 01:30:54]} {[%emt
00:00:08]} 2. d4 {[%clk 01:31:10]} {[%emt 00:00:13]} d5 {[%clk 01:31:12]}
{[%emt 00:00:12]} 3. Nc3 {[%clk 01:30:54]} {[%emt 00:00:46]} Bb4 {[%clk
01:31:21]} {[%emt 00:00:22]} 4. e5 {[%clk 01:31:03]} {[%emt 00:00:20]} c5
{[%clk 01:31:27]} {[%emt 00:00:25]} 5. a3 {[%clk 01:31:18]} {[%emt 00:00:14]}
Bxc3+ {[%clk 01:31:45]} {[%emt 00:00:13]} 6. bxc3 {[%clk 01:31:43]} {[%emt
00:00:04]} Ne7 {[%clk 01:31:48]} {[%emt 00:00:28]} 7. h4 {[%clk 01:29:53]}
{[%emt 00:02:19]} Qa5 {[%clk 01:30:30]} {[%emt 00:01:48]} 8. Bd2 {[%clk
01:30:07]} {[%emt 00:00:15]} Nbc6 {[%clk 01:09:03]} {[%emt 00:21:59]} 9. h5
{[%clk 01:25:30]} {[%emt 00:05:06]} Bd7 {[%clk 01:02:49]} {[%emt 00:06:45]} 10.
h6 {[%clk 01:18:39]} {[%emt 00:07:19]} gxh6 {[%clk 00:54:21]} {[%emt 00:08:59]}
11. Nf3 {[%clk 01:06:10]} {[%emt 00:12:58]} O-O-O {[%clk 00:47:06]} {[%emt
00:07:47]} 12. a4 {[%clk 00:54:39]} {[%emt 00:11:59]} Ng8 {[%clk 00:43:14]}
{[%emt 00:04:22]} 13. Bd3 {[%clk 00:49:35]} {[%emt 00:05:33]} c4 {[%clk
00:42:19]} {[%emt 00:01:27]} 14. Be2 {[%clk 00:49:09]} {[%emt 00:00:56]} f6
{[%clk 00:38:17]} {[%emt 00:04:32]} 15. exf6 {[%clk 00:48:39]} {[%emt
00:00:58]} Nxf6 {[%clk 00:38:40]} {[%emt 00:00:08]} 16. Rxh6 {[%clk 00:48:02]}
{[%emt 00:01:07]} Ne4 {[%clk 00:38:20]} {[%emt 00:00:50]} 17. Ng5 {[%clk
00:42:22]} {[%emt 00:06:10]} Nxg5 {[%clk 00:38:24]} {[%emt 00:00:27]} 18. Bxg5
{[%clk 00:42:40]} {[%emt 00:00:11]} Qxc3+ {[%clk 00:37:31]} {[%emt 00:01:23]}
19. Kf1 {[%clk 00:42:53]} {[%emt 00:00:17]} Rdf8 {[%clk 00:35:00]} {[%emt
00:03:02]} 20. Bf6 {[%clk 00:36:06]} {[%emt 00:07:16]} Rxf6 {[%clk 00:29:07]}
{[%emt 00:06:23]} 21. Rxf6 {[%clk 00:36:32]} {[%emt 00:00:02]} Nxd4 {[%clk
00:29:15]} {[%emt 00:00:23]} 22. Rh6 {[%clk 00:32:50]} {[%emt 00:04:11]} Nxc2
{[%clk 00:20:54]} {[%emt 00:08:52]} 23. Ra2 {[%clk 00:21:46]} {[%emt 00:11:33]}
Qg7 {[%clk 00:17:52]} {[%emt 00:03:32]} 24. Rh4 {[%clk 00:21:13]} {[%emt
00:01:02]} Nb4 {[%clk 00:14:59]} {[%emt 00:03:22]} 25. Ra3 {[%clk 00:20:00]}
{[%emt 00:01:43]} a5 {[%clk 00:12:17]} {[%emt 00:03:14]} 26. Rg3 {[%clk
00:18:17]} {[%emt 00:02:11]} Qe7 {[%clk 00:10:35]} {[%emt 00:02:12]} 27. Rh6
{[%clk 00:16:38]} {[%emt 00:02:10]} Rf8 {[%clk 00:09:51]} {[%emt 00:01:15]} 28.
Qb1 {[%clk 00:10:33]} {[%emt 00:06:33]} Qc5 {[%clk 00:09:04]} {[%emt 00:01:18]}
29. Bf3 {[%clk 00:10:38]} {[%emt 00:00:24]} Nd3 {[%clk 00:08:36]} {[%emt
00:00:59]} 30. Qa2 {[%clk 00:09:43]} {[%emt 00:01:26]} Qb4 {[%clk 00:07:39]}
{[%emt 00:01:24]} 31. Kg1 {[%clk 00:08:57]} {[%emt 00:01:18]} Qe1+ {[%clk
00:07:52]} {[%emt 00:00:17]} 32. Kh2 {[%clk 00:09:24]} {[%emt 00:00:02]} Nxf2
{[%clk 00:08:02]} {[%emt 00:00:22]} 33. Rgh3 {[%clk 00:05:55]} {[%emt
00:03:58]} Nxh3 {[%clk 00:06:48]} {[%emt 00:01:44]} 34. Rxh3 {[%clk 00:06:07]}
{[%emt 00:00:17]} Qe5+ {[%clk 00:07:03]} {[%emt 00:00:15]} 35. Kh1 {[%clk
00:06:22]} {[%emt 00:00:17]} Rf7 {[%clk 00:06:19]} {[%emt 00:01:13]} 36. Rh5
{[%clk 00:04:02]} {[%emt 00:02:50]} Qd4 {[%clk 00:05:19]} {[%emt 00:01:28]} 37.
Qc2 {[%clk 00:02:50]} {[%emt 00:01:43]} Qd3 {[%clk 00:04:44]} {[%emt 00:01:04]}
38. Qf2 {[%clk 00:01:22]} {[%emt 00:01:58]} Qb1+ {[%clk 00:03:46]} {[%emt
00:01:28]} 39. Kh2 {[%clk 00:01:35]} {[%emt 00:00:17]} Qb4 {[%clk 00:04:07]}
{[%emt 00:00:08]} 40. Qd4 {[%clk 00:00:50]} {[%emt 00:01:15]} c3 {[%clk
00:02:20]} {[%emt 00:02:18]} 41. Qh8+ {[%clk 00:30:26]} {[%emt 00:00:53]} Kc7
{[%clk 00:32:39]} {[%emt 00:00:11]} 42. Qe5+ {[%clk 00:29:16]} {[%emt
00:01:40]} Qd6 {[%clk 00:32:51]} {[%emt 00:00:19]} 0-1

[Event "Allsvenskan 24-25"]
[Site "Linköping, Sweden"]
[Date "2024.12.01"]
[Round "5.5"]
[White "Loven, Anders"]
[Black "Varro, Daniel"]
[Result "0-1"]
[TimeControl "90 min/40 moves + 30 min + 30 sec from move 1"]
[WhiteElo "2074"]
[BlackElo "1914"]

1. Nf3 {[%clk 01:30:57]} {[%emt 00:00:02]} d5 {[%clk 01:30:48]} {[%emt
00:00:13]} 2. g3 {[%clk 01:31:11]} {[%emt 00:00:15]} c6 {[%clk 01:29:55]}
{[%emt 00:01:24]} 3. Bg2 {[%clk 01:31:27]} {[%emt 00:00:11]} Bf5 {[%clk
01:30:16]} {[%emt 00:00:12]} 4. O-O {[%clk 01:30:14]} {[%emt 00:01:41]} Nd7
{[%clk 01:28:37]} {[%emt 00:02:11]} 5. d3 {[%clk 01:28:07]} {[%emt 00:02:36]}
Ngf6 {[%clk 01:23:34]} {[%emt 00:05:34]} 6. c4 {[%clk 01:28:08]} {[%emt
00:00:28]} e6 {[%clk 01:23:54]} {[%emt 00:00:10]} 7. Nc3 {[%clk 01:27:03]}
{[%emt 00:01:35]} h6 {[%clk 01:23:42]} {[%emt 00:00:43]} 8. cxd5 {[%clk
01:25:36]} {[%emt 00:01:56]} exd5 {[%clk 01:23:37]} {[%emt 00:00:34]} 9. e4
{[%clk 01:24:07]} {[%emt 00:01:59]} dxe4 {[%clk 01:13:38]} {[%emt 00:10:30]} 10.
dxe4 {[%clk 01:24:21]} {[%emt 00:00:16]} Be6 {[%clk 01:13:32]} {[%emt
00:00:37]} 11. Nd4 {[%clk 01:20:47]} {[%emt 00:04:03]} Bc4 {[%clk 01:11:51]}
{[%emt 00:02:11]} 12. Re1 {[%clk 01:20:53]} {[%emt 00:00:24]} Ne5 {[%clk
01:06:55]} {[%emt 00:05:26]} 13. Nde2 {[%clk 00:48:17]} {[%emt 00:33:06]} Bc5
{[%clk 01:03:56]} {[%emt 00:03:29]} 14. b3 {[%clk 00:41:15]} {[%emt 00:07:32]}
Ba6 {[%clk 01:02:16]} {[%emt 00:02:10]} 15. a3 {[%clk 00:32:26]} {[%emt
00:09:20]} Bxf2+ {[%clk 00:45:24]} {[%emt 00:17:21]} 16. Kxf2 {[%clk 00:32:32]}
{[%emt 00:00:23]} Nfg4+ {[%clk 00:30:13]} {[%emt 00:15:41]} 17. Kg1 {[%clk
00:31:02]} {[%emt 00:02:00]} Nd3 {[%clk 00:25:49]} {[%emt 00:04:54]} 18. Na4
{[%clk 00:14:09]} {[%emt 00:17:24]} Nxe1 {[%clk 00:24:08]} {[%emt 00:02:11]} 19.
Qxe1 {[%clk 00:13:51]} {[%emt 00:00:47]} Bxe2 {[%clk 00:24:03]} {[%emt
00:00:36]} 20. Bb2 {[%clk 00:14:00]} {[%emt 00:00:21]} Qd3 {[%clk 00:21:47]}
{[%emt 00:02:45]} 21. h3 {[%clk 00:13:20]} {[%emt 00:01:10]} Qe3+ {[%clk
00:15:34]} {[%emt 00:06:43]} 22. Kh1 {[%clk 00:13:43]} {[%emt 00:00:07]} Nf2+
{[%clk 00:15:56]} {[%emt 00:00:08]} 23. Kh2 {[%clk 00:13:56]} {[%emt 00:00:17]}
O-O-O {[%clk 00:16:09]} {[%emt 00:00:17]} 24. Qa5 {[%clk 00:10:18]} {[%emt
00:04:08]} Bb5 {[%clk 00:13:26]} {[%emt 00:03:12]} 25. Be5 {[%clk 00:09:30]}
{[%emt 00:01:19]} Rd7 {[%clk 00:11:42]} {[%emt 00:02:14]} 26. Re1 {[%clk
00:09:00]} {[%emt 00:01:00]} b6 {[%clk 00:07:25]} {[%emt 00:04:48]} 27. Rxe3
{[%clk 00:09:01]} {[%emt 00:00:29]} bxa5 {[%clk 00:07:50]} {[%emt 00:00:05]} 28.
Nc5 {[%clk 00:07:41]} {[%emt 00:01:50]} Nd1 {[%clk 00:03:28]} {[%emt 00:04:52]}
29. Re1 {[%clk 00:08:01]} {[%emt 00:00:10]} Rd2 {[%clk 00:03:20]} {[%emt
00:00:37]} 30. Bxg7 {[%clk 00:05:58]} {[%emt 00:02:33]} Rh7 {[%clk 00:01:44]}
{[%emt 00:02:06]} 31. Be5 {[%clk 00:02:46]} {[%emt 00:03:42]} Ne3 {[%clk
00:01:38]} {[%emt 00:00:35]} 32. Rxe3 {[%clk 00:03:04]} {[%emt 00:00:14]} Bf1
{[%clk 00:02:03]} {[%emt 00:00:05]} 33. h4 {[%clk 00:02:43]} {[%emt 00:00:50]}
Bxg2 {[%clk 00:02:14]} {[%emt 00:00:19]} 34. Kg1 {[%clk 00:02:49]} {[%emt
00:00:24]} Bh3 {[%clk 00:01:27]} {[%emt 00:01:17]} 35. Nd3 {[%clk 00:02:37]}
{[%emt 00:00:42]} f6 {[%clk 00:00:44]} {[%emt 00:01:14]} 36. Bxf6 {[%clk
00:01:57]} {[%emt 00:01:10]} Rd7 {[%clk 00:00:35]} {[%emt 00:00:39]} 37. Nf2
{[%clk 00:02:19]} {[%emt 00:00:08]} Be6 {[%clk 00:00:39]} {[%emt 00:00:26]} 38.
g4 {[%clk 00:01:51]} {[%emt 00:00:59]} Ra2 {[%clk 00:00:34]} {[%emt 00:00:35]}
39. g5 {[%clk 00:00:37]} {[%emt 00:01:44]} hxg5 {[%clk 00:00:51]} {[%emt
00:00:13]} 40. hxg5 {[%clk 00:01:06]} {[%emt 00:00:02]} Rdd2 {[%clk 00:00:59]}
{[%emt 00:00:21]} 41. Rf3 {[%clk 00:30:01]} {[%emt 00:01:35]} Rxa3 {[%clk
00:19:51]} {[%emt 00:11:39]} 42. Bc3 {[%clk 00:29:38]} {[%emt 00:00:52]} Rxb3
{[%clk 00:15:40]} {[%emt 00:04:41]} 43. Rf8+ {[%clk 00:29:27]} {[%emt
00:00:41]} Rd8 {[%clk 00:15:59]} {[%emt 00:00:12]} 44. Rxd8+ {[%clk 00:24:34]}
{[%emt 00:05:24]} Kxd8 {[%clk 00:16:24]} {[%emt 00:00:05]} 45. Bxa5+ {[%clk
00:24:57]} {[%emt 00:00:07]} Ke8 {[%clk 00:16:22]} {[%emt 00:00:31]} 46. Kg2
{[%clk 00:24:23]} {[%emt 00:01:04]} Rb5 {[%clk 00:16:04]} {[%emt 00:00:49]} 47.
Bd2 {[%clk 00:24:44]} {[%emt 00:00:09]} Rb2 {[%clk 00:16:16]} {[%emt 00:00:18]}
48. Be3 {[%clk 00:24:42]} {[%emt 00:00:32]} a5 {[%clk 00:16:34]} {[%emt
00:00:12]} 49. Kf3 {[%clk 00:25:02]} {[%emt 00:00:10]} a4 {[%clk 00:13:51]}
{[%emt 00:03:13]} 50. Nd3 {[%clk 00:24:05]} {[%emt 00:01:27]} Rb3 {[%clk
00:09:04]} {[%emt 00:05:17]} 51. Ke2 {[%clk 00:24:25]} {[%emt 00:00:10]} Bc4
{[%clk 00:09:25]} {[%emt 00:00:09]} 0-1

[Event "Allsvenskan 24-25"]
[Site "Linköping, Sweden"]
[Date "2024.12.01"]
[Round "5.6"]
[White "Thornqvist, Ofelia"]
[Black "Agrest, Simon"]
[Result "0-1"]
[TimeControl "90 min/40 moves + 30 min + 30 sec from move 1"]
[WhiteElo "1873"]
[BlackElo "2007"]

1. d4 {[%clk 01:30:59]} Nf6 {[%clk 01:30:52]} {[%emt 00:00:08]} 2. Bf4 {[%clk
01:31:20]} {[%emt 00:00:10]} d6 {[%clk 01:31:08]} {[%emt 00:00:14]} 3. e3
{[%clk 01:30:51]} {[%emt 00:00:59]} g6 {[%clk 01:31:30]} {[%emt 00:00:07]} 4.
Nf3 {[%clk 01:30:32]} {[%emt 00:00:49]} Nh5 {[%clk 01:31:47]} {[%emt 00:00:13]}
5. Bg3 {[%clk 01:30:29]} {[%emt 00:00:34]} Nxg3 {[%clk 01:31:55]} {[%emt
00:00:22]} 6. hxg3 {[%clk 01:30:54]} {[%emt 00:00:05]} Bg7 {[%clk 01:32:08]}
{[%emt 00:00:17]} 7. Be2 {[%clk 01:29:31]} {[%emt 00:01:53]} c5 {[%emt
00:01:19]} 8. c3 {[%clk 01:25:06]} {[%emt 00:04:52]} Nc6 {[%clk 01:27:34]}
{[%emt 00:04:17]} 9. dxc5 {[%clk 01:22:06]} {[%emt 00:03:31]} dxc5 {[%clk
01:26:51]} {[%emt 00:01:13]} 10. Qxd8+ {[%clk 01:22:25]} {[%emt 00:00:12]} Nxd8
{[%clk 01:26:12]} {[%emt 00:01:08]} 11. Nbd2 {[%clk 01:18:27]} {[%emt
00:04:28]} Bd7 {[%clk 01:23:52]} {[%emt 00:02:50]} 12. a4 {[%clk 01:15:04]}
{[%emt 00:03:53]} Nc6 {[%clk 01:18:07]} {[%emt 00:06:15]} 13. a5 {[%clk
01:10:30]} {[%emt 00:05:05]} Rc8 {[%clk 01:11:33]} {[%emt 00:07:03]} 14. Bc4
{[%clk 01:05:52]} {[%emt 00:05:09]} h6 {[%clk 01:08:27]} {[%emt 00:03:37]} 15.
O-O {[%clk 01:00:37]} {[%emt 00:05:45]} O-O {[%clk 01:00:38]} {[%emt 00:08:18]}
16. e4 {[%clk 00:53:25]} {[%emt 00:07:42]} Rfd8 {[%clk 00:57:35]} {[%emt
00:03:32]} 17. Nb3 {[%clk 00:52:59]} {[%emt 00:00:56]} Ne5 {[%clk 00:57:07]}
{[%emt 00:00:58]} 18. Nxe5 {[%clk 00:49:33]} {[%emt 00:03:56]} Bxe5 {[%clk
00:57:16]} {[%emt 00:00:21]} 19. Rfd1 {[%clk 00:47:29]} {[%emt 00:02:34]} Bc6
{[%clk 00:52:20]} {[%emt 00:05:26]} 20. Bd5 {[%clk 00:38:40]} {[%emt 00:09:20]}
Bxd5 {[%clk 00:52:02]} {[%emt 00:00:48]} 21. Rxd5 {[%clk 00:38:03]} {[%emt
00:01:07]} Rxd5 {[%clk 00:52:08]} {[%emt 00:00:24]} 22. exd5 {[%clk 00:38:28]}
{[%emt 00:00:05]} c4 {[%clk 00:51:54]} {[%emt 00:00:43]} 23. Nd2 {[%clk
00:36:00]} {[%emt 00:02:58]} Rc5 {[%clk 00:43:09]} {[%emt 00:09:14]} 24. Ra4
{[%clk 00:31:34]} {[%emt 00:04:58]} Rxd5 {[%clk 00:41:36]} {[%emt 00:02:02]} 25.
Nxc4 {[%emt 00:00:49]} Bd6 {[%clk 00:40:51]} {[%emt 00:01:13]} 26. Kf1 {[%clk
00:26:42]} {[%emt 00:05:06]} Kg7 {[%clk 00:36:44]} {[%emt 00:04:37]} 27. Ke2
{[%clk 00:25:51]} {[%emt 00:01:21]} f5 {[%clk 00:34:43]} {[%emt 00:02:31]} 28.
Nxd6 {[%clk 00:21:54]} {[%emt 00:04:27]} Rxd6 {[%clk 00:33:00]} {[%emt
00:02:12]} 29. Rb4 {[%clk 00:21:20]} {[%emt 00:01:04]} Rd7 {[%clk 00:33:11]}
{[%emt 00:00:18]} 30. g4 {[%clk 00:15:22]} {[%emt 00:06:29]} Kf6 {[%clk
00:29:04]} {[%emt 00:04:37]} 31. gxf5 {[%clk 00:14:21]} {[%emt 00:01:32]} Kxf5
{[%clk 00:29:05]} {[%emt 00:00:28]} 32. Ra4 {[%clk 00:10:31]} {[%emt 00:04:19]}
Rd5 {[%clk 00:25:07]} {[%emt 00:04:28]} 33. Rb4 {[%clk 00:08:50]} {[%emt
00:02:12]} Rd7 {[%clk 00:24:36]} {[%emt 00:01:01]} 34. Ra4 {[%clk 00:09:13]}
{[%emt 00:00:07]} h5 {[%clk 00:12:08]} {[%emt 00:12:59]} 35. b4 {[%clk
00:07:14]} {[%emt 00:02:28]} Rc7 {[%clk 00:10:56]} {[%emt 00:01:43]} 36. Kd3
{[%clk 00:04:14]} {[%emt 00:03:29]} e5 {[%clk 00:11:12]} {[%emt 00:00:14]} 37.
b5 {[%clk 00:03:42]} {[%emt 00:01:02]} e4+ {[%clk 00:09:42]} {[%emt 00:02:00]}
38. Rxe4 {[%clk 00:04:00]} {[%emt 00:00:13]} Rxc3+ {[%clk 00:09:28]} {[%emt
00:00:44]} 39. Kxc3 {[%clk 00:04:04]} {[%emt 00:00:26]} Kxe4 {[%clk 00:09:46]}
{[%emt 00:00:12]} 40. Kc4 {[%clk 00:04:17]} {[%emt 00:00:17]} b6 {[%clk
00:05:19]} {[%emt 00:04:56]} 41. axb6 {[%clk 00:03:33]} {[%emt 00:01:15]} axb6
{[%clk 00:05:40]} {[%emt 00:00:09]} 42. f3 {[%clk 00:26:21]} {[%emt 00:07:42]}
Ke5 {[%clk 00:32:56]} {[%emt 00:03:14]} 43. f4+ {[%clk 00:24:27]} {[%emt
00:02:25]} Ke4 {[%clk 00:31:25]} {[%emt 00:02:00]} 44. g3 {[%clk 00:23:24]}
{[%emt 00:01:33]} Kf3 {[%clk 00:31:48]} {[%emt 00:00:06]} 45. Kd5 {[%clk
00:23:02]} {[%emt 00:00:53]} Kxg3 {[%clk 00:32:09]} {[%emt 00:00:09]} 46. Kc6
{[%clk 00:23:29]} {[%emt 00:00:04]} h4 {[%clk 00:32:33]} {[%emt 00:00:06]} 47.
Kxb6 {[%clk 00:23:54]} {[%emt 00:00:05]} h3 {[%clk 00:32:56]} {[%emt 00:00:07]}
48. Kc7 {[%clk 00:24:13]} {[%emt 00:00:11]} h2 {[%clk 00:33:09]} {[%emt
00:00:17]} 49. b6 {[%clk 00:24:30]} {[%emt 00:00:13]} h1=Q {[%clk 00:33:30]}
{[%emt 00:00:09]} 50. b7 {[%clk 00:24:57]} {[%emt 00:00:02]} Qc1+ {[%clk
00:33:04]} {[%emt 00:00:56]} 51. Kd8 {[%clk 00:25:11]} {[%emt 00:00:16]} Qxf4
{[%clk 00:33:15]} {[%emt 00:00:19]} 0-1